Cogmind - Beta 13 @@@ ROGUE MODE // 2024.04.02 @ 22:52:09 Player: complexblob Result: Destroyed by Y-45 Defender with Heavy Assault Rifle Performance ------------- Evolutions (1) 500 Regions Visited (2) 400 Robots Destroyed (20) 100 Value Destroyed (392) 392 Prototype IDs (0) 0 Alien Tech Used (0) 0 Bonus (0) 0 TOTAL SCORE: 1392 Bonus ------- None Cogmind --------- Core Integrity 0/400 Matter 300/300 Energy 100/100 System Corruption 3% Temperature Cool (9) Movement Core (400) Ox7 Location -9/Materials Parts ------- > --- POWER (1) -------- (None) > --- PROPULSION (3) --- (None) > --- UTILITY (2) ------ Large Storage Unit > --- WEAPON (3) ------- Hammer > --- INVENTORY (15) --- High-capacity Storage Unit Huge Storage Unit Large Battery (200) Large Battery (200) Visual Processing Unit Improved Terrain Scanner Improved Targeting Computer Backup Plating I Peak State ------------ > --- POWER ------------ (None) > --- PROPULSION ------- Aluminum Leg Aluminum Leg Aluminum Leg > --- UTILITY ---------- Heat Sink Large Storage Unit > --- WEAPON ----------- Backup Laser I Light EM Pulse Cannon Light Assault Rifle > --- INVENTORY -------- Light Ion Engine Improved Treads Aluminum Leg High-capacity Storage Unit Large Battery Large Battery Visual Processing Unit Improved Terrain Scanner Improved Targeting Computer Backup Plating I Medium Armor Plating Assault Rifle Flail [Rating: 11] Favorites ----------- Power Light Ion Engine Engine Light Ion Engine Propulsion Aluminum Leg Treads Improved Treads Leg Aluminum Leg Utility Large Storage Unit Device Heat Sink Storage Large Storage Unit Protection Backup Plating I Weapon Light Assault Rifle Energy Gun Backup Laser I Energy Cannon Light EM Pulse Cannon Ballistic Gun Light Assault Rifle Special Weapon Mining Laser Impact Weapon Flail Build | -11 -10 -9 ------- Run | Yrd Mat Mat Slots Evolved 2 | . . 2 Power . | . . . Propulsion 1 | . . 1 Utility . | . . . Weapon 1 | . . 1 Parts Attached 28 | 10 7 11 Power 3 | 2 . 1 Engine 3 | 2 . 1 Core . | . . . Reactor . | . . . Propulsion 7 | 2 2 3 Treads 1 | . . 1 Leg 6 | 2 2 2 Wheel . | . . . Hover . | . . . Flight . | . . . Utility 7 | 2 2 3 Device 3 | 2 1 . Storage 3 | . 1 2 Processor . | . . . Hackware . | . . . Protection 1 | . . 1 Artifact . | . . . Weapon 11 | 4 3 4 Energy Gun 1 | . 1 . Energy Cannon 1 | . . 1 Ballistic Gun 5 | 2 2 1 Ballistic Cannon . | . . . Launcher . | . . . Special Weapon 2 | 2 . . Impact Weapon 2 | . . 2 Slashing Weapon . | . . . Piercing Weapon . | . . . Special Melee Weapon . | . . . Unidentified Prototypes . | . . . Parts Lost 19 | . 6 13 Power 2 | . 1 1 Propulsion 6 | . 1 5 Utility 3 | . 1 2 Weapon 8 | . 3 5 Highest Loss Streak 13 | . 4 13 To Critical Strikes . | . . . Average Slot Usage (%) 86 | . 89 80 Engine 4 | . 6 . Leg 27 | . 27 28 Device 11 | . 12 9 Storage 13 | . 13 11 Protection 1 | . 1 . Energy Gun 7 | . 6 9 Energy Cannon 2 | . . 9 Ballistic Gun 10 | . 10 9 Special Weapon 6 | . 8 . Naked Turns . | . . . Heaviest Build 27 | 7 26 27 Greatest Support 30 | 20 20 30 Greatest Overweight (x) 7 | . 2 7 Average Overweight (x) . | . . . Largest Inventory Capacity 25 | 5 15 25 Average Capacity 13 | 5 14 15 Most Carried 14 | 5 9 14 Average Carried 8 | 2 7 12 Final Capacity 15 | 5 15 15 Final Carried 9 | 5 9 8 Class Distribution -------------------- 67% | Scavenger-Mutant 20% | Scavenger-Gunner 12% | Mutant Dominant Class ---------------- Scavenger-Mutant | -10/Materials Scavenger-Gunner | -9/Materials Resources | -11 -10 -9 ----------- Run | Yrd Mat Mat Matter Collected 480 | 314 96 70 Remotely . | . . . Salvage Created 555 | 80 217 258 Parts 39 | 12 18 9 Haulers Intercepted . | . . . Recyclers Shooed . | . . . Parts Field Recycled . | . . . Retrieved Matter . | . . . Parts Self-Destructed . | . . . Prevented . | . . . Kills | -11 -10 -9 ------- Run | Yrd Mat Mat Combat Hostiles Destroyed 14 | 1 9 4 Melee 1 | . . 1 Guns 10 | 1 7 2 Cannons 3 | . 2 1 Classes Destroyed 6 | 2 2 2 Tunneler 3 | 3 . . Recycler 1 | . . 1 Watcher 2 | . 2 . Swarmer 7 | . 6 1 Grunt 6 | 1 3 2 Brawler 1 | . . 1 Best Kill Streak 4 | 2 4 3 Combat Bots Only 3 | 1 3 3 Max Kills in Single Turn 1 | 1 1 1 Gunslinging . | . . . Exploded . | . . . Melee 1 | . . 1 Uniques/NPCs Destroyed . | . . . Combat | -11 -10 -9 -------- Run | Yrd Mat Mat Hostile Shots Fired 252 | 4 101 147 Missed 64 | 1 30 33 Damage Taken 2011 | 33 828 1150 Core 594 | 21 168 405 Absorbed by Shields . | . . . Regen/Repaired (Parts) 26 | . 26 . Core Remaining (%) 57 | 91 24 . Volleys Fired 53 | 8 34 11 Largest 3 | 2 2 3 Hottest 200 | 40 200 106 Shots Fired 92 | 14 59 19 Gun 77 | 14 48 15 Cannon 4 | . . 4 Launcher . | . . . Special 11 | . 11 . Kinetic 66 | 14 41 11 Thermal 22 | . 18 4 Explosive . | . . . Electromagnetic 4 | . . 4 Robot Hit Streak 16 | 5 16 4 Robot Miss Streak 6 | 1 6 5 Penetration Max . | . . . Secondary Targets . | . . . Shots Hit Robots 55 | 9 35 11 Core Hits 35 | 8 19 8 Critical Kills . | . . . Critical Parts Destroyed . | . . . Critical Strikes 1 | . . 1 Corrupt 1 | . . 1 Melee Attacks 2 | . . 2 Impact 2 | . . 2 Slashing . | . . . Piercing . | . . . Sneak Attacks . | . . . Combat Hostiles . | . . . Follow-up Attacks . | . . . Damage Inflicted 649 | 69 383 197 Guns 431 | 69 263 99 Cannons 73 | . . 73 Explosions . | . . . Melee 25 | . . 25 Ramming . | . . . Kinetic 394 | 69 245 80 Thermal 157 | . 138 19 Explosive . | . . . Electromagnetic 73 | . . 73 Impact 25 | . . 25 Slashing . | . . . Piercing . | . . . Highest Corruption 3 | . . 3 Average Corruption 2 | . . 2 Corruption Purged . | . . . Corruption Blocked . | . . . Overload Shots . | . . . Overflow Damage 8 | . 8 . Projectiles 8 | . 8 . Explosions . | . . . Melee . | . . . Knockbacks . | . . . Impact . | . . . Kinetic . | . . . Secondary . | . . . Self-Inflicted Damage . | . . . Shots . | . . . Rammed . | . . . Targets Rammed . | . . . Kicked . | . . . Crushed . | . . . Highest Temperature 17 | 6 17 3 Average Temperature 8 | 6 8 3 Received Heat Transfer 279 | 18 69 192 Siege Activations . | . . . Robots Corrupted . | . . . Combat Hostiles . | . . . Parts Fried 1 | . . 1 Impact Corruptions . | . . . Robots Melted . | . . . Combat Hostiles . | . . . Parts Melted 1 | . . 1 Heat Transferred 398 | . 324 74 Parts Sabotaged . | . . . Parts Stolen . | . . . Parts Stripped . | . . . Power Chain Reactions . | . . . Alert | -11 -10 -9 ------- Run | Yrd Mat Mat Peak Influence 171 | 35 171 149 Initial 38 | . 22 38 Average 56 | 13 56 79 Maximum Alert Level . | . . . Low Security (%) 100 | 100 100 100 Level 1 . | . . . Level 2 . | . . . Level 3 . | . . . Level 4 . | . . . Level 5 . | . . . High Security . | . . . Max Security . | . . . Squads Dispatched 3 | . 2 1 Investigation 2 | . 1 1 Extermination . | . . . Reinforcement 1 | . 1 . Assault . | . . . Garrison . | . . . Intercept . | . . . Searches Triggered . | . . . Construction Impeded . | . . . Haulers Reinforced . | . . . Active Scanning Responses . | . . . Cargo Convoy Interrupts . | . . . Stealth | -11 -10 -9 --------- Run | Yrd Mat Mat Distress Signals 1 | . . 1 Communications Jammed . | . . . Distress Signals . | . . . Times Spotted 31 | 1 14 16 Peak Tracking Total 10 | 1 3 10 Tactical Retreats 2 | . 2 . Traps | -11 -10 -9 ------- Run | Yrd Mat Mat Traps Triggered 3 | . 2 1 Indirectly . | . . . Trap Hack Attempts . | . . . Triggered . | . . . Disarmed . | . . . Reprogrammed . | . . . Reused . | . . . Traps Extracted . | . . . Installed . | . . . Triggered . | . . . Machines | -11 -10 -9 ---------- Run | Yrd Mat Mat Machines Disabled 1 | . . 1 Max in Single Turn 1 | . . 1 Machines Repaired . | . . . Machines Dismantled . | . . . Machines Sabotaged . | . . . Overloaded Fab Kills . | . . . Hacking | -11 -10 -9 --------- Run | Yrd Mat Mat Machines Accessed 6 | . 5 1 Terminals 5 | . 4 1 Fabricators . | . . . Repair Stations 1 | . 1 . Recycling Units . | . . . Scanalyzers . | . . . Garrison Access . | . . . Total Hacks 20 | . 15 5 Successful 15 | . 11 4 Failed 5 | . 4 1 Catastrophic . | . . . Database Lockouts . | . . . Manual . | . . . Terminals 16 | . 11 5 Fabricators . | . . . Repair Stations 4 | . 4 . Recycling Units . | . . . Scanalyzers . | . . . Garrison Access . | . . . Terminal Hacks 12 | . 8 4 Record 2 | . 1 1 Robot Analysis 1 | . 1 . Level Access Points 1 | . . 1 Emergency Access Points 2 | . 1 1 Locate Traps 1 | . 1 . Dispatch Records 1 | . 1 . Transport Status 1 | . . 1 Recall Investigation 1 | . 1 . Zone Layout 2 | . 2 . Fabricator Hacks . | . . . Repair Station Hacks 3 | . 3 . Scan Component 1 | . 1 . Repair 1 | . 1 . Refit 1 | . 1 . Recycling Unit Hacks . | . . . Scanalyzer . | . . . Garrison Access Hacks . | . . . Unauthorized Hacks . | . . . Terminals . | . . . Fabricators . | . . . Repair Stations . | . . . Recycling Units . | . . . Scanalyzers . | . . . Garrison Access . | . . . Data Cores Recovered . | . . . Used . | . . . Hacking Detections 5 | . 4 1 Full Trace Events . | . . . Feedback Events . | . . . Feedback Blocked . | . . . Robot Schematics Acquired . | . . . Robots Built . | . . . Authchips . | . . . Time . | . . . Total Robot Build Rating . | . . . Part Schematics Acquired . | . . . Parts Built . | . . . Authchips . | . . . Time . | . . . Total Part Build Rating . | . . . Parts Repaired 1 | . 1 . Time 26 | . 26 . Parts Recycled . | . . . Recycled Matter . | . . . Retrieved Matter . | . . . Retrieved Components . | . . . Parts Scanalyzed . | . . . Part Schematics Acquired . | . . . Parts Damaged . | . . . Bothacking | -11 -10 -9 ------------ Run | Yrd Mat Mat Used RIF Installer . | . . . Robots Hacked . | . . . Non-combat . | . . . Combat . | . . . Robot Hacks Applied . | . . . Relay Couplers Released . | . . . Fabnet Peak Effective % . | . . . Robots Rewired . | . . . Allies Hacked . | . . . Hacks Repelled . | . . . Allies | -11 -10 -9 -------- Run | Yrd Mat Mat Total Allies . | . . . Largest Group . | . . . Highest-Rated Group . | . . . Highest-Rated Ally . | . . . Total Orders . | . . . Ally Attacks . | . . . Total Damage . | . . . Kills . | . . . Allies Corrupted . | . . . Allies Melted . | . . . Intel | -11 -10 -9 ------- Run | Yrd Mat Mat Robot Analysis Total 1 | . 1 . Derelict Logs Recovered . | . . . Drone Launches . | . . . Drone Recoveries . | . . . Exploration | -11 -10 -9 ------------- Run | Yrd Mat Mat Turns Passed 1176 | 150 741 285 Spaces Moved 516 | 99 299 118 Core 21 | 18 . 3 Treads . | . . . Legs 495 | 81 299 115 Wheels . | . . . Hover . | . . . Flight . | . . . Fastest Speed 50 | 50 120 120 Average Speed 168 | 107 188 169 Slowest Speed 400 | 120 260 400 Overloaded Moves . | . . . Propulsion Burnouts . | . . . Robots Hopped . | . . . Cave-ins Triggered . | . . . Exploration Rate (%) 21 | 7 44 13 Regions Visited 2 Branch Regions . Pre-discovered Areas . | . . . Known Exits Taken . | . . . Unknown Exits Taken 2 | 1 1 . Scrap Searched . | . . . Spaces Dug . | . . . Terrain Destroyed 2 | . 2 . Melee . | . . . Projectile 2 | . 2 . AOE . | . . . Terrain Rammed . | . . . Walls Destroyed . | . . . Machines Disabled . | . . . Actions | -11 -10 -9 --------- Run | Yrd Mat Mat Total 719 | 130 404 185 Wait 89 | . 54 35 Move 514 | 98 298 118 Hop . | . . . Pick Up 30 | 12 10 8 Fast Attach 2 | 2 . . Attach 20 | 6 5 9 Detach . | . . . Swap 6 | 2 2 2 Drop 3 | 2 1 . Fire 53 | 8 34 11 Melee 2 | . . 2 Ram . | . . . Kick . | . . . Crush . | . . . Escape Stasis . | . . . Rewire . | . . . Trap . | . . . Miscellaneous . | . . . Route ------- -11/Scrapyard -10/Materials -9/Materials (discovered 3 exits: Mat x3) History --------- Turn | Location | Event 2 | -11/Scrapyard | Met Revision 17 67 | -11/Scrapyard | Discovered new exit (range 8) 151 | -11/Scrapyard | Entered Materials 300 | -10/Materials | Build established: Scavenger-Mutant 465 | -10/Materials | Repaired Heat Sink 486 | -10/Materials | Core integrity fell below 50% 537 | -10/Materials | Lost 4 parts (1p1n1u1w) 768 | -10/Materials | Discovered new exit (range 9) 892 | -10/Materials | Entered another Materials area 892 | -9/Materials | Evolved 2 slots: Propulsion x1, Weapon x1 993 | -9/Materials | Identified exit to Materials 1146 | -9/Materials | Core integrity fell below 50% 1171 | -9/Materials | Core integrity fell below 20% 1177 | -9/Materials | Destroyed by Y-45 Defender with Heavy Assault Rifle Last Messages --------------- K-01 Serf collects debris. Imp. Treads destroyed. K-01 Serf collects debris. K-01 Serf destroyed. R-06 Scavenger collects Wheel. S-10 Pest destroyed. Flail destroyed. K-01 Serf collects debris. Acquired Hammer. Assault Rifle destroyed. K-01 Serf collects debris. W-16 Scout sends out distress signal. K-01 Serf collects debris. M-13 Machinist repairs Y-45 Defender. Atomic Centrifuge disabled. G-34 Mercenary destroyed. K-01 Serf collects debris. Acquired 66 matter. K-01 Serf destroyed. K-01 Serf collects debris. Map ----- +----------------------------------------------------+ | ???????????????????????????????????????????# # | | ???????????????????????????????????????????# # | | ???????????????????????????????????????????# # | | ???????????????????????????????????????????# + | | ???????????????????????????????????????????# #!! | | ???????????????????????????????????????????# # | | ??????????????????????????????????????????## ### | | ??????????????????????????????????????????# ## | | ??????????????????????????? ????????????# | | ??????????????????????????? #???????????# | | ??????????????????????????# #???????????# | | ??????????????????????????# #???????????# ## | | ??????????????????????????# #???????????#######? | | ??????????????????????????# #??????????????????? | | ??????????????????????????# #??????????????????? | | ??????????????????????????# #??##??????????????? | | ??????????????????????????# #? ???????????????? | | ???????????????#??????????# # ????????????????? | | ???????????????? ????????# # ?????##########??? | | ????????????????? ???????# +??????# #### | | ??????????????????Y"??????# #??????# """"" + | | ???????????????????" ?????# #??????# """"" #### | | ???????????????????##+##### %######## """"" #??? | | ???????????????????# Ym *%% * # """"" #??? | | ???????????????????# %=*%= + """" #??? | | ???????????????????# g%@*%* "T" # """"" #??? | | ???????????????????+ ###ssk %# """"" #??? | | ???????????????????# ?#" % # #??? | | ???????????????????# ??#T " " ##########??? | | ???????????????????# ???#" u """ #???????????? | | ???????????????????#????## """ #???????????? | | ?????????????????????????# [ #???????????? | | ?????????????????????????# u #???????????? | | ?????????????????????????# """ #???????????? | | ?????????????????????????# """ #??????????? | | ?????????????????????????# """ + ?????????? | | ?????????????????????????#[ # ???????? | | ?????????????????????????# #? ??????? | | ???